fUSD/lending_fUSD_20251024
["ID","MTS","AMOUNT","RATE_DAILY","PERIOD"]
[392244091,1761276654713,-500.0,0.00041369,30]
[392244092,1761276654724,-500.0,0.00041369,30]
[392244093,1761276654733,-500.0,0.00041369,30]
[392244094,1761276654743,-692.19,0.00041369,30]
[392244095,1761276654752,-500.0,0.00041369,30]
[392244096,1761276654762,-500.0,0.00041369,30]
[392244097,1761276654771,-500.0,0.00041369,30]
[392244098,1761276654781,-831.51,0.00041369,30]
[392244099,1761276654791,-934.85,0.00041369,30]
[392244100,1761276654801,-500.0,0.00041369,30]
[392244101,1761276654810,-500.0,0.00041369,30]
[392244102,1761276654819,-500.0,0.00041369,30]
[392244103,1761276654830,-500.0,0.00041369,30]
[392244104,1761276654841,-500.0,0.00041369,30]
[392244105,1761276654851,-500.0,0.00041369,30]
[392244106,1761276654861,-500.0,0.00041369,30]
[392244107,1761276654872,-257.51590049,0.00041369,30]
[392244108,1761276654882,-611.59,0.00041369,30]
[392244109,1761276654891,-500.0,0.00041369,30]
[392244110,1761276654901,-500.0,0.00041369,30]
[392244111,1761276654910,-500.0,0.00041369,30]
[392244112,1761276654921,-500.0,0.00041369,30]
[392244113,1761276654931,-500.0,0.00041369,30]
[392244114,1761276654942,-828.75,0.00041369,30]
[392244115,1761276654951,-500.0,0.00041369,30]
[392244116,1761276654960,-550.14,0.00041369,30]
[392244117,1761276654980,-509.48,0.00041369,30]
[392244118,1761276654989,-500.0,0.00041369,30]
[392244119,1761276654999,-500.0,0.00041369,30]
[392244120,1761276655009,-500.0,0.00041369,30]
[392244121,1761276655018,-500.0,0.00041369,30]
[392244122,1761276655028,-501.751199,0.00041369,30]
[392244123,1761276655037,-500.0,0.00041369,30]
[392244124,1761276655047,-500.0,0.00041369,30]
[392244125,1761276655056,-887.85,0.00041369,30]
[392244126,1761276655065,-500.0,0.00041369,30]
[392244127,1761276655074,-248.02647144,0.00041369,30]
[392244128,1761276655084,-722.47,0.00041369,30]
[392244129,1761276655093,-500.0,0.00041369,30]
[392244130,1761276655103,-255.36567048,0.00041369,30]
[392244131,1761276655117,-653.44,0.00041369,30]
[392244132,1761276655126,-500.0,0.00041369,30]
[392244133,1761276655136,-500.0,0.00041369,30]
[392244134,1761276655145,-500.0,0.00041369,30]
[392244135,1761276655156,-500.0,0.00041369,30]
[392244136,1761276655166,-500.0,0.00041369,30]
[392244137,1761276655177,-629.72,0.00041369,30]
[392244138,1761276655186,-500.0,0.00041369,30]
[392244139,1761276655196,-500.0,0.00041369,30]
[392244140,1761276655205,-500.0,0.00041369,30]
[392244141,1761276655214,-500.0,0.00041369,30]
[392244142,1761276655223,-500.0,0.00041369,30]
[392244143,1761276655232,-500.0,0.00041369,30]
[392244144,1761276655243,-768.04,0.00041369,30]
[392244145,1761276655253,-500.0,0.00041369,30]
[392244146,1761276655264,-500.0,0.00041369,30]
[392244147,1761276655275,-604.08,0.00041369,30]
[392244148,1761276655286,-617.03,0.00041369,30]
[392244149,1761276655297,-500.0,0.00041369,30]
[392244150,1761276655307,-500.0,0.00041369,30]
[392244151,1761276655317,-500.0,0.00041369,30]
[392244152,1761276655326,-500.0,0.00041369,30]
[392244153,1761276655336,-500.0,0.00041369,30]
[392244154,1761276655345,-698.83,0.00041369,30]
[392244155,1761276655354,-500.0,0.00041369,30]
[392244156,1761276655364,-680.26,0.00041369,30]
[392244157,1761276655373,-500.0,0.00041369,30]
[392244158,1761276655383,-500.0,0.00041369,30]
[392244159,1761276655393,-500.0,0.00041369,30]
[392244160,1761276655402,-500.0,0.00041369,30]
[392244161,1761276655411,-500.0,0.00041369,30]
[392244162,1761276655420,-500.0,0.00041369,30]
[392244163,1761276655430,-500.0,0.00041369,30]
[392244164,1761276655440,-560.72,0.00041369,30]
[392244165,1761276655449,-500.0,0.00041369,30]
[392244166,1761276655459,-500.0,0.00041369,30]
[392244167,1761276655468,-500.0,0.00041369,30]
[392244168,1761276655478,-500.0,0.00041369,30]
[392244169,1761276655487,-500.0,0.00041369,30]
[392244170,1761276655497,-500.0,0.00041369,30]
[392244171,1761276655506,-500.0,0.00041369,30]
[392244172,1761276655516,-500.0,0.00041369,30]
[392244173,1761276655527,-500.0,0.00041369,30]
[392244174,1761276655537,-500.0,0.00041369,30]
[392244175,1761276655547,-500.0,0.00041369,30]
[392244176,1761276655556,-500.0,0.00041369,30]
[392244177,1761276655566,-500.0,0.00041369,30]
[392244178,1761276655575,-500.0,0.00041369,30]
[392244179,1761276655586,-738.78,0.00041369,30]
[392244180,1761276655596,-500.0,0.00041369,30]
[392244181,1761276655606,-500.0,0.00041369,30]
[392244182,1761276655616,-525.1,0.00041369,30]
[392244183,1761276655626,-608.95,0.00041369,30]
[392244184,1761276655636,-500.0,0.00041369,30]
[392244185,1761276655645,-500.0,0.00041369,30]
[392244186,1761276655654,-500.0,0.00041369,30]
[392244187,1761276655663,-500.0,0.00041369,30]
[392244188,1761276655673,-500.0,0.00041369,30]
[392244189,1761276655682,-500.0,0.00041369,30]
[392244190,1761276655692,-578.11585091,0.00041369,30]
[392244191,1761276655702,-500.0,0.00041369,30]
[392244192,1761276655714,-500.0,0.00041369,30]
[392244193,1761276655723,-500.0,0.00041369,30]
[392244194,1761276655733,-575.75,0.00041369,30]
[392244195,1761276655744,-1053.78,0.00041369,30]
[392244196,1761276655754,-513.84,0.00041369,30]
[392244197,1761276655763,-500.0,0.00041369,30]
[392244198,1761276655772,-500.0,0.00041369,30]
[392244199,1761276655780,-500.0,0.00041369,30]
[392244200,1761276655789,-500.0,0.00041369,30]
[392244201,1761276655797,-500.0,0.00041369,30]
[392244202,1761276655805,-500.0,0.00041369,30]
[392244203,1761276655814,-500.0,0.00041369,30]
[392244204,1761276655822,-500.0,0.00041369,30]
[392244205,1761276655830,-500.0,0.00041369,30]
[392244206,1761276655838,-847.38,0.00041369,30]
[392244207,1761276655847,-500.0,0.00041369,30]
[392244208,1761276655856,-808.39,0.00041369,30]
[392244209,1761276655864,-500.0,0.00041369,30]
[392244210,1761276655874,-549.37,0.00041369,30]
[392244211,1761276655890,-578.8,0.00041369,30]
[392244212,1761276655899,-154.309446,0.00041369,30]
[392244213,1761276655908,-500.0,0.00041369,30]
[392244214,1761276655917,-500.0,0.00041369,30]
[392244215,1761276655927,-500.0,0.00041369,30]
[392244216,1761276655938,-340.460656,0.00041369,30]
[392244217,1761276655948,-865.1,0.00041369,30]
[392244218,1761276655957,-500.0,0.00041369,30]
[392244219,1761276655967,-617.67,0.00041369,30]
[392244220,1761276655976,-500.0,0.00041369,30]
[392244221,1761276655986,-500.0,0.00041369,30]
[392244222,1761276655996,-500.0,0.00041369,30]
[392244223,1761276656007,-658.11,0.00041369,30]
[392244224,1761276656017,-500.0,0.00041369,30]
[392244225,1761276656028,-500.0,0.00041369,30]
[392244226,1761276656038,-735.14,0.00041369,30]
[392244227,1761276656047,-500.0,0.00041369,30]
[392244228,1761276656057,-500.0,0.00041369,30]
[392244229,1761276656067,-1000.0,0.00041369,120]
[392244230,1761276656076,-781.22,0.00041369,30]
[392244231,1761276656086,-500.0,0.00041369,30]
[392244232,1761276656095,-500.0,0.00041369,30]
[392244233,1761276656106,-503.60856578,0.00041369,30]
[392244234,1761276656120,-500.0,0.00041369,30]
[392244235,1761276656130,-539.59,0.00041369,30]
[392244236,1761276656140,-733.91,0.00041369,30]
[392244237,1761276656151,-500.0,0.00041369,30]
[392244238,1761276656163,-500.0,0.00041369,30]
[392244239,1761276656173,-500.0,0.00041369,30]
[392244240,1761276656184,-500.0,0.00041369,30]
[392244241,1761276656196,-500.0,0.00041369,30]
[392244242,1761276656206,-808.43,0.00041369,30]
[392244243,1761276656216,-327.44329505,0.00041369,30]
[392244244,1761276656226,-500.0,0.00041369,30]
[392244245,1761276656236,-500.0,0.00041369,30]
[392244246,1761276656246,-704.43,0.00041369,30]
[392244247,1761276656256,-500.0,0.00041369,30]
[392244248,1761276656267,-533.23,0.00041369,30]
[392244249,1761276656277,-840.45,0.00041369,30]
[392244250,1761276656287,-500.0,0.00041369,30]
[392244251,1761276656298,-500.0,0.00041369,30]
[392244252,1761276656308,-597.88,0.00041369,30]
[392244253,1761276656318,-500.0,0.00041369,30]
[392244254,1761276656328,-500.0,0.00041369,30]
[392244255,1761276656338,-500.0,0.00041369,30]
[392244256,1761276656348,-566.49,0.00041369,30]
[392244257,1761276656358,-500.0,0.00041369,30]
[392244258,1761276656368,-500.0,0.00041369,30]
[392244259,1761276656378,-367.05772142,0.00041369,30]
[392244260,1761276656387,-177.31296756,0.00041369,30]
[392244261,1761276656397,-620.13793384,0.00041369,30]
[392244262,1761276656406,-500.0,0.00041369,30]
[392244263,1761276656415,-500.0,0.00041369,30]
[392244264,1761276656425,-500.0,0.00041369,30]
[392244265,1761276656434,-830.72,0.00041369,30]
[392244266,1761276656443,-500.0,0.00041369,30]
[392244267,1761276656453,-500.0,0.00041369,30]
[392244268,1761276656462,-500.0,0.00041369,30]
[392244269,1761276656472,-500.0,0.00041369,30]
[392244270,1761276656481,-500.0,0.00041369,30]
[392244271,1761276656491,-749.93,0.00041369,30]
[392244272,1761276656500,-666.64,0.00041369,30]
[392244273,1761276656510,-500.0,0.00041369,30]
[392244274,1761276656519,-500.0,0.00041369,30]
[392244275,1761276656529,-500.0,0.00041369,30]
[392244276,1761276656539,-500.0,0.00041369,30]
[392244277,1761276656548,-500.0,0.00041369,30]
[392244278,1761276656558,-500.0,0.00041369,120]
[392244279,1761276656568,-500.0,0.00041369,30]
[392244280,1761276656580,-215.49520091,0.00041369,30]
[392244281,1761276656589,-500.0,0.00041369,30]
[392244282,1761276656600,-500.0,0.00041369,30]
[392244283,1761276656609,-500.0,0.00041369,30]
[392244284,1761276656621,-500.0,0.00041369,30]
[392244285,1761276656631,-500.0,0.00041369,30]
[392244286,1761276656640,-500.0,0.00041369,30]
[392244287,1761276656650,-788.87,0.00041369,30]
[392244288,1761276656659,-500.0,0.00041369,30]
[392244289,1761276656668,-686.26,0.00041369,30]
[392244290,1761276656677,-693.47,0.00041369,30]
[392244291,1761276656686,-500.0,0.00041369,30]
[392244292,1761276656696,-513.66,0.00041369,30]
[392244293,1761276656706,-500.0,0.00041369,30]
[392244294,1761276656715,-384.83515253,0.00041369,30]
[392244295,1761276656725,-500.0,0.00041369,30]
[392244296,1761276656735,-560.3,0.00041369,30]
[392244297,1761276656744,-608.92,0.00041369,30]
[392244298,1761276656754,-500.0,0.00041369,30]
[392244299,1761276656763,-500.0,0.00041369,30]
[392244300,1761276656773,-795.51,0.00041369,30]
[392244301,1761276656782,-500.0,0.00041369,30]
[392244302,1761276656792,-500.0,0.00041369,30]
[392244303,1761276656801,-1206.81,0.00041369,30]
[392244304,1761276656810,-500.0,0.00041369,30]
[392244305,1761276656820,-500.0,0.00041369,30]
[392244306,1761276656833,-500.0,0.00041369,30]
[392244307,1761276656843,-500.0,0.00041369,30]
[392244308,1761276656852,-1125.76,0.00041369,30]
[392244309,1761276656863,-500.0,0.00041369,30]
[392244310,1761276656873,-738.1,0.00041369,30]
[392244311,1761276656883,-500.0,0.00041369,30]
[392244312,1761276656893,-500.0,0.00041369,30]
[392244313,1761276656903,-500.0,0.00041369,30]
[392244314,1761276656913,-967.88,0.00041369,30]
[392244315,1761276656923,-500.0,0.00041369,30]
[392244316,1761276656932,-500.0,0.00041369,30]
[392244317,1761276656942,-500.0,0.00041369,30]
[392244318,1761276656952,-500.0,0.00041369,30]
[392244319,1761276656962,-885.41,0.00041369,30]
[392244320,1761276656972,-500.0,0.00041369,30]
[392244321,1761276656982,-634.75,0.00041369,30]
[392244322,1761276656991,-280.57874692,0.00041369,30]
[392244323,1761276657001,-500.0,0.00041369,30]
[392244324,1761276657011,-500.0,0.00041369,30]
[392244325,1761276657020,-529.46,0.00041369,30]
[392244326,1761276657030,-151.0,0.00041369,120]
[392244327,1761276657040,-796.37,0.00041369,30]
[392244328,1761276657050,-621.28,0.00041369,30]
[392244329,1761276657059,-500.0,0.00041369,30]
[392244330,1761276657069,-500.0,0.00041369,30]
[392244331,1761276657078,-880.49,0.00041369,30]
[392244332,1761276657088,-926.44,0.00041369,30]
[392244333,1761276657097,-500.0,0.00041369,30]
[392244334,1761276657109,-151.0,0.00041369,120]
[392244335,1761276657119,-500.0,0.00041369,30]
[392244336,1761276657323,-500.0,0.00041369,30]
[392244337,1761276657344,-464.35756775,0.00041369,30]
[392244338,1761276657355,-500.0,0.00041369,30]
[392244339,1761276657364,-183.89764442,0.00041369,30]
[392244340,1761276657375,-580.82,0.00041369,30]
[392244341,1761276657386,-513.39,0.00041369,30]
[392244342,1761276657396,-736.93,0.00041369,30]
[392244343,1761276657405,-565.79,0.00041369,30]
[392244344,1761276657415,-591.81,0.00041369,30]
[392244345,1761276657426,-500.0,0.00041369,30]
[392244346,1761276657437,-500.0,0.00041369,30]
[392244347,1761276657449,-500.0,0.00041369,30]
[392244348,1761276657459,-500.0,0.00041369,30]
[392244349,1761276657469,-767.1,0.00041369,30]
[392244350,1761276657478,-856.96,0.00041369,30]
[392244351,1761276657489,-870.03,0.00041369,30]
[392244352,1761276657499,-809.41,0.00041369,30]
[392244353,1761276657509,-500.0,0.00041369,30]
[392244354,1761276657523,-500.0,0.00041369,30]
[392244355,1761276657535,-500.0,0.00041369,30]
[392244356,1761276657544,-500.0,0.00041369,30]
[392244357,1761276657555,-500.0,0.00041369,30]
[392244358,1761276657564,-500.0,0.00041369,30]
[392244359,1761276657573,-500.0,0.00041369,30]
[392244360,1761276657583,-500.0,0.00041369,30]
[392244361,1761276657592,-500.0,0.00041369,30]
[392244362,1761276657602,-500.0,0.00041369,30]
[392244363,1761276657611,-722.58,0.00041369,30]
[392244364,1761276657621,-426.36,0.00041369,30]
[392244365,1761276657630,-500.0,0.00041369,30]
[392244366,1761276657640,-500.0,0.00041369,30]
[392244367,1761276657649,-581.66,0.00041369,30]
[392244368,1761276657658,-1000.0,0.00041369,30]
[392244369,1761276657668,-500.0,0.00041369,30]
[392244370,1761276657678,-500.0,0.00041369,30]
[392244371,1761276657688,-999.11,0.00041369,30]
[392244372,1761276657698,-500.0,0.00041369,30]
[392244373,1761276657709,-500.0,0.00041369,30]
[392244374,1761276657720,-500.0,0.00041369,30]
[392244375,1761276657730,-500.0,0.00041369,30]
[392244376,1761276657741,-500.0,0.00041369,30]
[392244377,1761276657751,-500.0,0.00041369,30]
[392244378,1761276657762,-500.0,0.00041369,30]
[392244379,1761276657774,-535.52,0.00041369,30]
[392244380,1761276657785,-557.78,0.00041369,30]
[392244381,1761276657795,-2927.58,0.00041369,30]
[392244382,1761276657806,-500.0,0.00041369,30]
[392244383,1761276657816,-152.905253,0.00041369,120]
[392244384,1761276657827,-500.0,0.00041369,30]
[392244385,1761276657837,-500.0,0.00041369,30]
[392244386,1761276657846,-500.0,0.00041369,30]
[392244387,1761276657857,-500.0,0.00041369,30]
[392244388,1761276657866,-500.0,0.00041369,30]
[392244389,1761276657876,-519.26,0.00041369,30]
[392244390,1761276657886,-673.74,0.00041369,30]
[392244391,1761276657895,-151.0,0.00041369,120]
[392244392,1761276657904,-783.9,0.00041369,30]
[392244393,1761276657913,-500.0,0.00041369,30]
[392244394,1761276657923,-500.0,0.00041369,30]
[392244395,1761276657934,-326.35942918,0.00041369,30]
[392244396,1761276657944,-816.99,0.00041369,30]
[392244397,1761276657954,-500.0,0.00041369,30]
[392244398,1761276657964,-773.52,0.00041369,30]
[392244399,1761276657974,-500.0,0.00041369,30]
[392244400,1761276657984,-500.0,0.00041369,30]
[392244401,1761276657993,-812.07,0.00041369,30]
[392244402,1761276658004,-500.0,0.00041369,30]
[392244403,1761276658013,-500.0,0.00041369,30]
[392244404,1761276658023,-500.0,0.00041369,30]
[392244405,1761276658033,-500.0,0.00041369,30]
[392244406,1761276658043,-151.0,0.00041369,120]
[392244407,1761276658053,-171.54190114,0.00041369,30]
[392244408,1761276658062,-1089.69,0.00041369,30]
[392244409,1761276658072,-500.0,0.00041369,30]
[392244410,1761276658083,-500.0,0.00041369,30]
[392244411,1761276658094,-500.0,0.00041369,30]
[392244412,1761276658103,-1063.04,0.00041369,30]
[392244413,1761276658117,-500.0,0.00041369,30]
[392244414,1761276658128,-500.0,0.00041369,30]
[392244415,1761276658139,-500.0,0.00041369,30]
[392244416,1761276658148,-500.0,0.00041369,30]
[392244417,1761276658160,-416.53115946,0.00041369,30]
[392244418,1761276658171,-623.88,0.00041369,30]
[392244419,1761276658183,-500.0,0.00041369,30]
[392244420,1761276658195,-500.0,0.00041369,30]
[392244421,1761276658206,-500.0,0.00041369,30]
[392244422,1761276658217,-500.0,0.00041369,30]
[392244423,1761276658227,-500.0,0.00041369,30]
[392244424,1761276658236,-504.2114155,0.00041369,30]
[392244425,1761276658246,-536.84,0.00041369,30]
[392244426,1761276658256,-500.0,0.00041369,30]
[392244427,1761276658266,-656.17,0.00041369,30]
[392244428,1761276658280,-500.0,0.00041369,30]
[392244429,1761276658290,-500.0,0.00041369,30]
[392244430,1761276658301,-500.0,0.00041369,30]
[392244431,1761276658312,-500.0,0.00041369,30]
[392244432,1761276658321,-668.42,0.00041369,30]
[392244433,1761276658331,-500.0,0.00041369,30]
[392244434,1761276658340,-661.4,0.00041369,30]
[392244435,1761276658350,-500.0,0.00041369,30]
[392244436,1761276658359,-500.0,0.00041369,30]
[392244437,1761276658369,-500.0,0.00041369,30]
[392244438,1761276658380,-708.15,0.00041369,30]
[392244439,1761276658390,-802.48,0.00041369,30]
[392244440,1761276658400,-257.62745926,0.00041369,30]
[392244441,1761276658410,-500.0,0.00041369,30]
[392244442,1761276658420,-516.08,0.00041369,30]
[392244443,1761276658430,-500.0,0.00041369,30]
[392244444,1761276658440,-500.0,0.00041369,30]
[392244445,1761276658451,-500.0,0.00041369,30]
[392244446,1761276658460,-823.14,0.00041369,30]
[392244447,1761276658470,-500.0,0.00041369,30]
[392244448,1761276658480,-500.0,0.00041369,30]
[392244449,1761276658490,-742.53,0.00041369,30]
[392244450,1761276658500,-500.0,0.00041369,30]
[392244451,1761276658510,-500.0,0.00041369,30]
[392244452,1761276658520,-500.0,0.00041369,30]
[392244453,1761276658530,-849.18,0.00041369,30]
[392244454,1761276658539,-500.0,0.00041369,30]
[392244455,1761276658550,-500.0,0.00041369,30]
[392244456,1761276658559,-500.0,0.00041369,30]
[392244457,1761276658569,-500.0,0.00041369,30]
[392244458,1761276658578,-500.0,0.00041369,30]
[392244459,1761276658587,-500.0,0.00041369,30]
[392244460,1761276658596,-500.0,0.00041369,30]
[392244461,1761276658606,-500.0,0.00041369,30]
[392244462,1761276658615,-500.0,0.00041369,30]
[392244463,1761276658624,-566.09,0.00041369,30]
[392244464,1761276658635,-500.0,0.00041369,30]
[392244465,1761276658644,-500.0,0.00041369,30]
[392244466,1761276658653,-500.0,0.00041369,30]
[392244467,1761276658663,-159.516993,0.00041369,120]
[392244468,1761276658672,-500.0,0.00041369,30]
[392244469,1761276658683,-863.39,0.00041369,30]
[392244470,1761276658692,-681.53,0.00041369,30]
[392244471,1761276658702,-500.0,0.00041369,30]
[392244472,1761276658711,-500.0,0.00041369,30]
[392244473,1761276658721,-500.0,0.00041369,30]
[392244474,1761276658731,-225.305317,0.00041369,120]
[392244475,1761276658741,-353.28111844,0.00041369,30]
[392244476,1761276658750,-792.61,0.00041369,30]
[392244477,1761276658759,-500.0,0.00041369,30]
[392244478,1761276658769,-500.0,0.00041369,30]
[392244479,1761276658778,-500.0,0.00041369,30]
[392244480,1761276658787,-500.0,0.00041369,30]
[392244481,1761276658796,-500.0,0.00041369,30]
[392244482,1761276658806,-808.63,0.00041369,30]
[392244483,1761276658815,-618.95,0.00041369,30]
[392244484,1761276658824,-500.0,0.00041369,30]
[392244485,1761276658833,-585.0810967,0.00041369,30]
[392244486,1761276658843,-500.0,0.00041369,30]
[392244487,1761276658852,-153.335368,0.00041369,120]
[392244488,1761276658863,-500.0,0.00041369,30]
[392244489,1761276658872,-500.0,0.00041369,30]
[392244490,1761276658882,-500.0,0.00041369,30]
[392244491,1761276658891,-500.0,0.00041369,30]
[392244492,1761276658900,-500.0,0.00041369,30]
[392244493,1761276658910,-500.0,0.00041369,30]
[392244494,1761276658920,-614.37116261,0.00041369,30]
[392244495,1761276658930,-759.92,0.00041369,30]
[392244496,1761276658940,-500.0,0.00041369,30]
[392244497,1761276658949,-500.0,0.00041369,30]
[392244498,1761276658958,-1172.09,0.00041369,30]
[392244499,1761276658967,-277.26031729,0.00041369,30]
[392244500,1761276658977,-500.0,0.00041369,30]
[392244501,1761276658987,-500.0,0.00041369,30]
[392244502,1761276658996,-189.88191148,0.00041369,30]
[392244503,1761276659006,-557.35,0.00041369,30]
[392244504,1761276659015,-647.94,0.00041369,30]
[392244505,1761276659024,-840.94,0.00041369,30]
[392244506,1761276659034,-500.0,0.00041369,30]
[392244507,1761276659043,-500.0,0.00041369,30]
[392244508,1761276659052,-500.0,0.00041369,30]
[392244509,1761276659062,-760.03,0.00041369,30]
[392244510,1761276659072,-500.0,0.00041369,30]
[392244511,1761276659082,-500.0,0.00041369,30]
[392244512,1761276659091,-500.0,0.00041369,30]
[392244513,1761276659102,-500.0,0.00041369,30]
[392244514,1761276659117,-573.08,0.00041369,30]
[392244515,1761276659127,-500.0,0.00041369,30]
[392244516,1761276659137,-500.0,0.00041369,30]
[392244517,1761276659146,-500.0,0.00041369,30]
[392244518,1761276659157,-786.3,0.00041369,30]
[392244519,1761276659166,-500.0,0.00041369,30]
[392244520,1761276659175,-571.65408902,0.00041369,30]
[392244521,1761276659186,-500.0,0.00041369,30]
[392244522,1761276659196,-500.0,0.00041369,30]
[392244523,1761276659210,-500.0,0.00041369,30]
[392244524,1761276659220,-500.0,0.00041369,30]
[392244525,1761276659230,-500.0,0.00041369,30]
[392244526,1761276659239,-970.16,0.00041369,30]
[392244527,1761276659249,-500.0,0.00041369,30]
[392244528,1761276659258,-500.0,0.00041369,30]
[392244529,1761276659267,-500.0,0.00041369,30]
[392244530,1761276659275,-500.0,0.00041369,30]
[392244531,1761276659284,-500.0,0.00041369,30]
[392244532,1761276659293,-500.0,0.00041369,30]
[392244533,1761276659302,-544.22,0.00041369,30]
[392244534,1761276659311,-679.01,0.00041369,30]
[392244535,1761276659321,-500.0,0.00041369,30]
[392244536,1761276659332,-629.8,0.00041369,30]
[392244537,1761276659340,-500.0,0.00041369,30]
[392244538,1761276659349,-500.0,0.00041369,30]
[392244539,1761276659359,-500.0,0.00041369,30]
[392244540,1761276659368,-796.73,0.00041369,30]
[392244541,1761276659378,-500.0,0.00041369,30]
[392244542,1761276659388,-500.0,0.00041369,30]
[392244543,1761276659400,-500.0,0.00041369,30]
[392244544,1761276659410,-500.0,0.00041369,30]
[392244545,1761276659422,-500.0,0.00041369,30]
[392244546,1761276659431,-500.0,0.00041369,30]
[392244547,1761276659441,-500.0,0.00041369,30]
[392244548,1761276659451,-539.42,0.00041369,30]
[392244549,1761276659462,-512.09,0.00041369,30]
[392244550,1761276659472,-500.0,0.00041369,30]
[392244551,1761276659481,-500.0,0.00041369,30]
[392244552,1761276659492,-1087.85,0.00041369,30]
[392244553,1761276659814,-500.0,0.00041369,30]
[392244554,1761276659828,-305.1724,0.00041369,120]
[392244555,1761276659839,-500.0,0.00041369,30]
[392244556,1761276659848,-329.46562577,0.00041369,30]
[392244557,1761276659861,-305.1724,0.00041369,120]
[392244558,1761276659871,-500.0,0.00041369,30]
[392244559,1761276659881,-500.0,0.00041369,30]
[392244560,1761276659890,-500.0,0.00041369,30]
[392244561,1761276659899,-305.1724,0.00041369,120]
[392244562,1761276659909,-500.0,0.00041369,30]
[392244563,1761276659918,-500.0,0.00041369,30]
[392244564,1761276659927,-305.1724,0.00041369,120]
[392244565,1761276659936,-602.69,0.00041369,30]
[392244566,1761276659945,-500.0,0.00041369,30]
[392244567,1761276659955,-635.17,0.00041369,30]
[392244568,1761276659964,-151.0,0.00041369,120]
[392244569,1761276659973,-500.0,0.00041369,30]
[392244570,1761276659983,-161.29573107,0.00041369,30]
[392244571,1761276659992,-500.0,0.00041369,30]
[392244572,1761276660002,-476.10056676,0.00041369,30]
[392244573,1761276660011,-151.0,0.00041369,120]
[392244574,1761276660021,-500.0,0.00041369,30]
[392244575,1761276660031,-500.0,0.00041369,30]
[392244576,1761276660042,-501.16835242,0.00041369,30]
[392244577,1761276660052,-151.0,0.00041369,120]
[392244578,1761276660063,-500.0,0.00041369,30]
[392244579,1761276660073,-500.0,0.00041369,30]
[392244580,1761276660082,-805.42,0.00041369,30]
[392244581,1761276660092,-823.67,0.00041369,30]
[392244582,1761276660102,-654.87,0.00041369,30]
[392244583,1761276660114,-500.0,0.00041369,30]
[392244584,1761276660123,-500.0,0.00041369,30]
[392244585,1761276660132,-508.76,0.00041369,30]
[392244586,1761276660141,-644.65494901,0.00041369,30]
[392244587,1761276660151,-500.0,0.00041369,30]
[392244588,1761276660160,-500.0,0.0004137,120]
[392244589,1761276660169,-865.0,0.0004137,120]
[392244590,1761276660178,-503.0869604,0.00041373,10]